[Event "*** Titled Tuesday Blitz"]
[Site "Chess.com"]
[Date "2018.07.03"]
[Round "1"]
[White "jeetjain"]
[Black "Shant_Sargsyan"]
[Result "0-1"]
[WhiteElo "2438"]
[BlackElo "2902"]
[TimeControl "180+2"]
[EndTime "13:11:55 PDT"]
[Termination "Shant_Sargsyan won by resignation"]

1. e4 {[%clk 0:03:01.4]} 1... e5 {[%clk 0:02:57.7]} 2. Nf3 {[%clk 0:03:02.2]}
2... Nc6 {[%clk 0:02:52]} 3. Bc4 {[%clk 0:03:02.2]} 3... Bc5 {[%clk 0:02:49.1]}
4. c3 {[%clk 0:03:03.1]} 4... Nf6 {[%clk 0:02:50.2]} 5. d3 {[%clk 0:03:01]} 5...
d6 {[%clk 0:02:51]} 6. b4 {[%clk 0:03:00.2]} 6... Bb6 {[%clk 0:02:51.6]} 7. a4
{[%clk 0:03:01.5]} 7... a5 {[%clk 0:02:52.9]} 8. b5 {[%clk 0:03:02.4]} 8... Ne7
{[%clk 0:02:54.4]} 9. O-O {[%clk 0:03:03.1]} 9... O-O {[%clk 0:02:53.2]} 10. Be3
{[%clk 0:03:03.8]} 10... Bxe3 {[%clk 0:02:52.2]} 11. fxe3 {[%clk 0:03:05.7]}
11... Ng6 {[%clk 0:02:53.2]} 12. Nbd2 {[%clk 0:03:04.9]} 12... c6 {[%clk
0:02:51.3]} 13. bxc6 {[%clk 0:02:48.4]} 13... bxc6 {[%clk 0:02:53.2]} 14. Ba2
{[%clk 0:02:50.3]} 14... d5 {[%clk 0:02:54]} 15. exd5 {[%clk 0:02:50.2]} 15...
cxd5 {[%clk 0:02:55.9]} 16. d4 {[%clk 0:02:47.7]} 16... exd4 {[%clk 0:02:47.7]}
17. exd4 {[%clk 0:02:42.7]} 17... Qd6 {[%clk 0:02:42.3]} 18. Re1 {[%clk
0:02:37.8]} 18... Bf5 {[%clk 0:02:37.7]} 19. Ne5 {[%clk 0:02:36.7]} 19... Rac8
{[%clk 0:02:31.1]} 20. Qf3 {[%clk 0:02:32.9]} 20... Be6 {[%clk 0:02:29.2]} 21.
Rad1 {[%clk 0:02:26.6]} 21... Qc7 {[%clk 0:02:19.6]} 22. c4 {[%clk 0:02:23.4]}
22... Nxe5 {[%clk 0:01:57.6]} 23. dxe5 {[%clk 0:02:22.4]} 23... Qc5+ {[%clk
0:01:58.6]} 24. Qe3 {[%clk 0:01:55.1]} 24... Qxe3+ {[%clk 0:01:49.9]} 25. Rxe3
{[%clk 0:01:57]} 25... Ng4 {[%clk 0:01:51.3]} 26. Rg3 {[%clk 0:01:51.4]} 26...
dxc4 {[%clk 0:01:45.1]} 27. Nf3 {[%clk 0:01:27.9]} 27... Ne3 {[%clk 0:01:33.7]}
28. Rc1 {[%clk 0:01:23.3]} 28... Nf5 {[%clk 0:00:58.8]} 29. Rg4 {[%clk
0:01:18.9]} 29... c3 {[%clk 0:01:00.3]} 30. Bxe6 {[%clk 0:01:18.4]} 30... fxe6
{[%clk 0:01:02.2]} 31. Re4 {[%clk 0:00:45.4]} 31... Rfd8 {[%clk 0:00:58.8]} 32.
Re2 {[%clk 0:00:43.2]} 32... Nd4 {[%clk 0:00:50.1]} 33. Nxd4 {[%clk 0:00:39.8]}
33... Rxd4 {[%clk 0:00:52]} 34. Rec2 {[%clk 0:00:40.1]} 34... Rdc4 {[%clk
0:00:52.9]} 35. h3 {[%clk 0:00:37.8]} 35... Kf7 {[%clk 0:00:53.5]} 36. Rf1+
{[%clk 0:00:37]} 36... Ke7 {[%clk 0:00:54.4]} 37. Rb1 {[%clk 0:00:37.9]} 37...
R8c7 {[%clk 0:00:49.1]} 38. Rbc1 {[%clk 0:00:36.6]} 38... R7c5 {[%clk
0:00:40.2]} 39. Kf2 {[%clk 0:00:34.4]} 39... Rxe5 {[%clk 0:00:41]} 40. Rxc3
{[%clk 0:00:35.1]} 40... Rxa4 {[%clk 0:00:42.2]} 41. Rc7+ {[%clk 0:00:35.8]}
41... Kf6 {[%clk 0:00:43.4]} 42. R1c2 {[%clk 0:00:28.9]} 42... Rf5+ {[%clk
0:00:36]} 43. Kg1 {[%clk 0:00:27.6]} 43... h5 {[%clk 0:00:24.1]} 44. Rb2 {[%clk
0:00:27.7]} 44... h4 {[%clk 0:00:17.3]} 45. Kh2 {[%clk 0:00:25.4]} 45... Ra1
{[%clk 0:00:16.4]} 46. Rbb7 {[%clk 0:00:22.5]} 46... g6 {[%clk 0:00:12.3]} 47.
Rf7+ {[%clk 0:00:20.8]} 47... Kg5 {[%clk 0:00:13.2]} 48. Rxf5+ {[%clk
0:00:21.7]} 48... exf5 {[%clk 0:00:13.8]} 49. Ra7 {[%clk 0:00:21.3]} 49... a4
{[%clk 0:00:15.2]} 50. Ra5 {[%clk 0:00:20.4]} 50... a3 {[%clk 0:00:16.6]} 51.
Ra4 {[%clk 0:00:21.3]} 51... Kh5 {[%clk 0:00:11.9]} 52. Ra5 {[%clk 0:00:21.9]}
52... Kg5 {[%clk 0:00:11.7]} 53. Ra4 {[%clk 0:00:23.1]} 53... Ra2 {[%clk
0:00:13.1]} 54. Ra5 {[%clk 0:00:24]} 54... Kf6 {[%clk 0:00:12.4]} 55. Ra6+
{[%clk 0:00:25.3]} 55... Kg5 {[%clk 0:00:13.1]} 56. Ra5 {[%clk 0:00:26.4]} 56...
Kh5 {[%clk 0:00:13.8]} 57. Kg1 {[%clk 0:00:27.1]} 57... Ra1+ {[%clk 0:00:12.3]}
58. Kh2 {[%clk 0:00:28]} 58... a2 {[%clk 0:00:14.2]} 59. Ra3 {[%clk 0:00:28.8]}
59... g5 {[%clk 0:00:14.4]} 60. Ra6 {[%clk 0:00:29.1]} 60... g4 {[%clk
0:00:10.3]} 61. hxg4+ {[%clk 0:00:30.4]} 61... Kxg4 {[%clk 0:00:12.2]} 62. Ra4+
{[%clk 0:00:31]} 62... f4 {[%clk 0:00:13.4]} 63. Ra3 {[%clk 0:00:31.5]} 63...
Kf5 {[%clk 0:00:11.8]} 64. Ra5+ {[%clk 0:00:32.4]} 64... Ke4 {[%clk 0:00:13]}
65. Ra4+ {[%clk 0:00:33.9]} 65... Kd3 {[%clk 0:00:13.5]} 66. Ra3+ {[%clk
0:00:34.8]} 66... Kc2 {[%clk 0:00:11.3]} 67. Ra8 {[%clk 0:00:35.7]} 67... h3
{[%clk 0:00:12.4]} 68. gxh3 {[%clk 0:00:36]} 68... f3 {[%clk 0:00:13.5]} 69.
Rc8+ {[%clk 0:00:34.1]} 69... Kd3 {[%clk 0:00:13.2]} 70. Rd8+ {[%clk 0:00:34.7]}
70... Ke4 {[%clk 0:00:14.4]} 71. Re8+ {[%clk 0:00:35.4]} 71... Kd5 {[%clk
0:00:15.9]} 72. Rd8+ {[%clk 0:00:32.9]} 72... Ke6 {[%clk 0:00:17.3]} 73. Rd2
{[%clk 0:00:17.5]} 73... Ke5 {[%clk 0:00:13.4]} 74. h4 {[%clk 0:00:16.5]} 74...
Kf4 {[%clk 0:00:12.8]} 75. Rd4+ {[%clk 0:00:13.5]} 75... Ke3 {[%clk 0:00:13.9]}
76. Ra4 {[%clk 0:00:13.5]} 76... f2 {[%clk 0:00:15.1]} 77. Ra3+ {[%clk
0:00:14.4]} 77... Kd4 {[%clk 0:00:16.3]} 78. Ra4+ {[%clk 0:00:14.6]} 78... Kc5
{[%clk 0:00:17.8]} 79. h5 {[%clk 0:00:14.9]} 79... Rh1+ {[%clk 0:00:14]} 80.
Kxh1 {[%clk 0:00:14.3]} 80... f1=Q+ {[%clk 0:00:15.9]} 81. Kh2 {[%clk
0:00:15.4]} 81... a1=Q {[%clk 0:00:16.8]} 82. Rxa1 {[%clk 0:00:15.9]} 82... Qxa1
{[%clk 0:00:18.7]} 83. Kg3 {[%clk 0:00:17.8]} 83... Qh8 {[%clk 0:00:20.1]} 84.
Kg4 {[%clk 0:00:19.5]} 84... Kd6 {[%clk 0:00:22]} 85. Kg5 {[%clk 0:00:21.1]}
85... Ke7 {[%clk 0:00:23.9]} 0-1

[Event "*** Titled Tuesday Blitz"]
[Site "Chess.com"]
[Date "2018.07.03"]
[Round "1"]
[White "OparinGrigoriy"]
[Black "abubakrtagelsir"]
[Result "0-1"]
[WhiteElo "2888"]
[BlackElo "2456"]
[TimeControl "180+2"]
[EndTime "13:12:07 PDT"]
[Termination "abubakrtagelsir won by resignation"]

1. Nf3 {[%clk 0:03:00.1]} 1... Nf6 {[%clk 0:02:59.6]} 2. g3 {[%clk 0:03:00.9]}
2... g6 {[%clk 0:03:00.1]} 3. Bg2 {[%clk 0:03:01.7]} 3... Bg7 {[%clk 0:03:01.2]}
4. c4 {[%clk 0:03:02.9]} 4... d6 {[%clk 0:03:01.5]} 5. Nc3 {[%clk 0:03:03.8]}
5... O-O {[%clk 0:03:02.1]} 6. O-O {[%clk 0:03:03.5]} 6... c6 {[%clk 0:03:01.2]}
7. e4 {[%clk 0:03:01]} 7... Qa5 {[%clk 0:02:50.2]} 8. h3 {[%clk 0:02:43.8]} 8...
a6 {[%clk 0:02:45]} 9. d3 {[%clk 0:02:29.1]} 9... e5 {[%clk 0:02:44.9]} 10. Rb1
{[%clk 0:02:27.8]} 10... b5 {[%clk 0:02:44.4]} 11. b4 {[%clk 0:02:27.1]} 11...
Qc7 {[%clk 0:02:44.7]} 12. a4 {[%clk 0:02:28.3]} 12... Be6 {[%clk 0:02:38.5]}
13. Qe2 {[%clk 0:02:23.6]} 13... Qb7 {[%clk 0:02:22.5]} 14. Bg5 {[%clk
0:02:19.7]} 14... Nbd7 {[%clk 0:02:22.1]} 15. Rfc1 {[%clk 0:02:20.4]} 15... Rfc8
{[%clk 0:02:21.7]} 16. Be3 {[%clk 0:02:11.7]} 16... Nf8 {[%clk 0:02:20.9]} 17.
Ng5 {[%clk 0:02:11]} 17... Bd7 {[%clk 0:02:17.3]} 18. c5 {[%clk 0:01:51.9]}
18... h6 {[%clk 0:02:09]} 19. Nf3 {[%clk 0:01:51.9]} 19... dxc5 {[%clk
0:02:08.8]} 20. Bxc5 {[%clk 0:01:52]} 20... Ne6 {[%clk 0:02:03.6]} 21. Nxe5
{[%clk 0:01:47.4]} 21... Nxc5 {[%clk 0:02:04.6]} 22. bxc5 {[%clk 0:01:49.3]}
22... Be6 {[%clk 0:02:04.7]} 23. d4 {[%clk 0:01:49.7]} 23... Qe7 {[%clk
0:01:56.5]} 24. Qe3 {[%clk 0:01:35.3]} 24... Nd7 {[%clk 0:01:56.2]} 25. Nd3
{[%clk 0:01:31.8]} 25... Rab8 {[%clk 0:01:44.2]} 26. e5 {[%clk 0:01:31.4]} 26...
Nf8 {[%clk 0:01:39.5]} 27. Ne4 {[%clk 0:01:22.5]} 27... Qd7 {[%clk 0:01:34.3]}
28. Nd6 {[%clk 0:01:23.6]} 28... Rc7 {[%clk 0:01:33.7]} 29. Kh2 {[%clk
0:01:24.8]} 29... g5 {[%clk 0:01:31.1]} 30. f4 {[%clk 0:01:24]} 30... gxf4
{[%clk 0:01:25.4]} 31. Nxf4 {[%clk 0:01:25.9]} 31... Ng6 {[%clk 0:01:24.5]} 32.
Nh5 {[%clk 0:01:19.5]} 32... Qe7 {[%clk 0:01:17]} 33. Rf1 {[%clk 0:01:15.9]}
33... Qg5 {[%clk 0:01:15.6]} 34. Qxg5 {[%clk 0:01:15.8]} 34... hxg5 {[%clk
0:01:16.1]} 35. Nf6+ {[%clk 0:01:17.7]} 35... Bxf6 {[%clk 0:01:02.4]} 36. Rxf6
{[%clk 0:01:19.6]} 36... g4 {[%clk 0:01:02.7]} 37. h4 {[%clk 0:01:18.4]} 37...
Ne7 {[%clk 0:00:57.6]} 38. Rf4 {[%clk 0:01:06.8]} 38... b4 {[%clk 0:00:57.5]}
39. a5 {[%clk 0:01:06.4]} 39... b3 {[%clk 0:00:57.8]} 40. Rf2 {[%clk 0:01:05.1]}
40... Rb4 {[%clk 0:00:57.9]} 41. Rd2 {[%clk 0:00:59.6]} 41... Ra4 {[%clk
0:00:54]} 42. Rd3 {[%clk 0:00:30.2]} 42... Rxa5 {[%clk 0:00:54.3]} 43. Rdxb3
{[%clk 0:00:31.5]} 43... Bxb3 {[%clk 0:00:54.6]} 44. Rxb3 {[%clk 0:00:33.4]}
44... Ra2 {[%clk 0:00:51.8]} 45. Rb8+ {[%clk 0:00:28.6]} 45... Kh7 {[%clk
0:00:51.9]} 46. Kg1 {[%clk 0:00:23.4]} 46... Ra1+ {[%clk 0:00:46.6]} 47. Kh2
{[%clk 0:00:23.7]} 47... Ra2 {[%clk 0:00:47.5]} 48. Rb1 {[%clk 0:00:11.2]} 48...
Nd5 {[%clk 0:00:48]} 49. Kg1 {[%clk 0:00:12]} 49... Nc3 {[%clk 0:00:46.8]} 50.
Rf1 {[%clk 0:00:11]} 50... Ne2+ {[%clk 0:00:47.5]} 51. Kh2 {[%clk 0:00:12.4]}
51... Nxd4 {[%clk 0:00:48.4]} 52. Kh1 {[%clk 0:00:13.9]} 52... Ne2 {[%clk
0:00:46.5]} 53. Kh2 {[%clk 0:00:11.4]} 53... Nd4 {[%clk 0:00:46.9]} 54. Kh1
{[%clk 0:00:12.3]} 54... Nf3 {[%clk 0:00:48.2]} 55. Bxf3 {[%clk 0:00:09.6]}
55... gxf3 {[%clk 0:00:49.3]} 56. Rxf3 {[%clk 0:00:11.5]} 56... Kg8 {[%clk
0:00:50.1]} 57. h5 {[%clk 0:00:11.4]} 57... Re2 {[%clk 0:00:47.7]} 58. Rf5
{[%clk 0:00:11.8]} 58... Re7 {[%clk 0:00:45.5]} 59. h6 {[%clk 0:00:09.6]} 59...
R2xe5 {[%clk 0:00:45.3]} 60. Rf6 {[%clk 0:00:06.2]} 60... R5e6 {[%clk
0:00:42.4]} 61. h7+ {[%clk 0:00:06.1]} 61... Kxh7 {[%clk 0:00:42.1]} 62. Rf4
{[%clk 0:00:08]} 62... Re2 {[%clk 0:00:33.7]} 63. Kg1 {[%clk 0:00:07.9]} 63...
Ra2 {[%clk 0:00:31.7]} 64. Kf1 {[%clk 0:00:09.2]} 64... Kg6 {[%clk 0:00:30.2]}
65. Rg4+ {[%clk 0:00:10.4]} 65... Kf6 {[%clk 0:00:30.3]} 66. Rf4+ {[%clk
0:00:11.9]} 66... Ke6 {[%clk 0:00:31.3]} 67. Re4+ {[%clk 0:00:11.8]} 67... Kd7
{[%clk 0:00:32.4]} 68. Rd4 {[%clk 0:00:12.3]} 68... Ree2 {[%clk 0:00:30.8]} 69.
Nxf7+ {[%clk 0:00:07.1]} 69... Ke7 {[%clk 0:00:31.8]} 70. Ng5 {[%clk 0:00:07.5]}
70... Reb2 {[%clk 0:00:29.1]} 71. Rd1 {[%clk 0:00:06.3]} 71... Rh2 {[%clk
0:00:28.6]} 72. Nf3 {[%clk 0:00:05.2]} 72... Rh1+ {[%clk 0:00:28.6]} 73. Ng1
{[%clk 0:00:06.2]} 73... Rhh2 {[%clk 0:00:29.4]} 74. g4 {[%clk 0:00:03.3]} 74...
Raf2+ {[%clk 0:00:27.9]} 75. Ke1 {[%clk 0:00:04.6]} 75... Rfg2 {[%clk
0:00:29.2]} 76. Kf1 {[%clk 0:00:04.3]} 76... Rxg4 {[%clk 0:00:29.7]} 77. Re1+
{[%clk 0:00:05.4]} 77... Kd7 {[%clk 0:00:30.1]} 78. Re3 {[%clk 0:00:06.9]} 78...
Rh1 {[%clk 0:00:29.2]} 79. Kf2 {[%clk 0:00:07.9]} 79... Rgxg1 {[%clk 0:00:29.7]}
80. Re5 {[%clk 0:00:09.8]} 0-1

[Event "*** Titled Tuesday Blitz"]
[Site "Chess.com"]
[Date "2018.07.03"]
[Round "2"]
[White "Bad4life"]
[Black "dcremisi"]
[Result "1/2-1/2"]
[WhiteElo "2409"]
[BlackElo "2282"]
[TimeControl "180+2"]
[EndTime "13:19:17 PDT"]
[Termination "Game drawn by repetition"]

1. e4 {[%clk 0:03:01.9]} 1... e6 {[%clk 0:01:59.4]} 2. d4 {[%clk 0:03:02.6]}
2... d5 {[%clk 0:02:00.6]} 3. Nd2 {[%clk 0:03:04.1]} 3... a6 {[%clk 0:02:01.5]}
4. a3 {[%clk 0:03:04.9]} 4... Nf6 {[%clk 0:02:01.4]} 5. e5 {[%clk 0:03:06.1]}
5... Nfd7 {[%clk 0:02:03.1]} 6. c3 {[%clk 0:03:07.8]} 6... c5 {[%clk 0:02:04.6]}
7. Bd3 {[%clk 0:03:09.4]} 7... Nc6 {[%clk 0:02:06.2]} 8. Ne2 {[%clk 0:03:10.7]}
8... Qb6 {[%clk 0:02:07.4]} 9. Nf3 {[%clk 0:03:12]} 9... cxd4 {[%clk 0:02:08.4]}
10. cxd4 {[%clk 0:03:13.9]} 10... f6 {[%clk 0:02:06.6]} 11. exf6 {[%clk
0:03:14.3]} 11... Nxf6 {[%clk 0:02:08.5]} 12. O-O {[%clk 0:03:15.7]} 12... Bd6
{[%clk 0:02:10]} 13. Bf4 {[%clk 0:03:16.9]} 13... Bxf4 {[%clk 0:02:09.1]} 14.
Nxf4 {[%clk 0:03:18.8]} 14... O-O {[%clk 0:02:10.4]} 15. Ng5 {[%clk 0:03:18.7]}
15... Nxd4 {[%clk 0:02:06.3]} 16. Qh5 {[%clk 0:03:12]} 16... h6 {[%clk 0:01:44]}
17. Ng6 {[%clk 0:02:57.6]} 17... Nxh5 {[%clk 0:00:43.6]} 18. Ne7+ {[%clk
0:02:56.3]} 18... Kh8 {[%clk 0:00:44.7]} 19. Ng6+ {[%clk 0:02:57.3]} 19... Kg8
{[%clk 0:00:46]} 20. Ne7+ {[%clk 0:02:58.6]} 20... Kh8 {[%clk 0:00:47.6]} 21.
Ng6+ {[%clk 0:02:59]} 21... Kg8 {[%clk 0:00:49.1]} 22. Ne7+ {[%clk 0:03:00.3]}
22... Kh8 {[%clk 0:00:50.2]} 23. Ng6+ {[%clk 0:03:01.8]} 23... Kg8 {[%clk
0:00:51.5]} 24. Ne7+ {[%clk 0:03:03.2]} 24... Kh8 {[%clk 0:00:52.8]} 25. Ng6+
{[%clk 0:03:03.9]} 25... Kg8 {[%clk 0:00:53.1]} 1/2-1/2

[Event "*** Titled Tuesday Blitz"]
[Site "Chess.com"]
[Date "2018.07.03"]
[Round "2"]
[White "platy3"]
[Black "Gajuchess"]
[Result "1-0"]
[WhiteElo "2731"]
[BlackElo "2612"]
[TimeControl "180+2"]
[EndTime "13:19:32 PDT"]
[Termination "platy3 won by resignation"]

1. e4 {[%clk 0:03:01.4]} 1... c5 {[%clk 0:00:51.6]} 2. Nf3 {[%clk 0:03:01.1]}
2... e6 {[%clk 0:00:52.4]} 3. d4 {[%clk 0:03:01.9]} 3... cxd4 {[%clk 0:00:54.3]}
4. Nxd4 {[%clk 0:03:03.5]} 4... a6 {[%clk 0:00:56.2]} 5. c4 {[%clk 0:03:04.1]}
5... Qc7 {[%clk 0:00:57.5]} 6. Nc3 {[%clk 0:03:04.4]} 6... Nf6 {[%clk
0:00:59.4]} 7. Be2 {[%clk 0:03:05.7]} 7... b6 {[%clk 0:01:01.3]} 8. O-O {[%clk
0:03:06.7]} 8... Bb7 {[%clk 0:01:02.8]} 9. Qd3 {[%clk 0:03:08.1]} 9... d6 {[%clk
0:01:04.1]} 10. f4 {[%clk 0:03:08.6]} 10... Nbd7 {[%clk 0:01:05.1]} 11. b4
{[%clk 0:03:09.8]} 11... Be7 {[%clk 0:01:05.9]} 12. Bb2 {[%clk 0:03:10.5]} 12...
h5 {[%clk 0:01:07.3]} 13. Rac1 {[%clk 0:03:09.9]} 13... h4 {[%clk 0:01:08.2]}
14. Nd5 {[%clk 0:03:04.5]} 14... exd5 {[%clk 0:01:08.1]} 15. cxd5 {[%clk
0:03:05.8]} 15... Qd8 {[%clk 0:01:08.7]} 16. Nc6 {[%clk 0:02:58]} 16... Bxc6
{[%clk 0:01:10.1]} 17. dxc6 {[%clk 0:02:59.9]} 17... Nf8 {[%clk 0:01:11.5]} 18.
c7 {[%clk 0:02:48.5]} 18... Qc8 {[%clk 0:01:12.9]} 19. e5 {[%clk 0:02:46.6]}
19... dxe5 {[%clk 0:01:13.2]} 20. fxe5 {[%clk 0:02:46.1]} 20... N6d7 {[%clk
0:01:06.6]} 21. Qf3 {[%clk 0:02:40.9]} 1-0

[Event "*** Titled Tuesday Blitz"]
[Site "Chess.com"]
[Date "2018.07.03"]
[Round "2"]
[White "SidArun"]
[Black "Mbneu"]
[Result "0-1"]
[WhiteElo "2101"]
[BlackElo "2226"]
[TimeControl "180+2"]
[EndTime "13:20:13 PDT"]
[Termination "Mbneu won by resignation"]

1. e4 {[%clk 0:03:01.9]} 1... e5 {[%clk 0:02:55.9]} 2. f4 {[%clk 0:03:02.8]}
2... Bc5 {[%clk 0:02:55.6]} 3. Nf3 {[%clk 0:03:03.8]} 3... d5 {[%clk 0:02:56.1]}
4. Nxe5 {[%clk 0:03:02.2]} 4... dxe4 {[%clk 0:02:55.6]} 5. Bc4 {[%clk
0:03:01.3]} 5... Nh6 {[%clk 0:02:54.7]} 6. Qh5 {[%clk 0:02:52.7]} 6... O-O
{[%clk 0:02:53]} 7. Nc3 {[%clk 0:02:51.7]} 7... Qd4 {[%clk 0:02:45.1]} 8. Qe2
{[%clk 0:02:31]} 8... Nc6 {[%clk 0:02:40.6]} 9. Nb5 {[%clk 0:02:08.2]} 9... Qd8
{[%clk 0:02:38]} 10. Qxe4 {[%clk 0:01:56.8]} 10... Bf5 {[%clk 0:02:36.8]} 11.
Qe2 {[%clk 0:01:54.4]} 11... Nxe5 {[%clk 0:02:25.2]} 12. fxe5 {[%clk 0:01:50.3]}
12... c6 {[%clk 0:02:11.6]} 13. Nd6 {[%clk 0:01:50.4]} 13... Bxd6 {[%clk
0:02:09.3]} 14. d4 {[%clk 0:01:51]} 14... Qh4+ {[%clk 0:01:56.4]} 15. g3 {[%clk
0:01:51.6]} 15... Qxd4 {[%clk 0:01:56.6]} 16. Bxh6 {[%clk 0:01:51.6]} 16... Bxe5
{[%clk 0:01:54.1]} 17. Be3 {[%clk 0:01:46.5]} 17... Qxb2 {[%clk 0:01:34.9]} 18.
O-O {[%clk 0:01:47.3]} 18... Qxc2 {[%clk 0:01:33.3]} 19. Bc5 {[%clk 0:01:42.3]}
19... Qxe2 {[%clk 0:01:30.1]} 20. Bxe2 {[%clk 0:01:41.2]} 20... Bxa1 {[%clk
0:01:30.3]} 21. Rxa1 {[%clk 0:01:31]} 21... Rfe8 {[%clk 0:01:28.3]} 22. Bc4
{[%clk 0:01:27.2]} 22... b6 {[%clk 0:01:26]} 0-1

[Event "*** Titled Tuesday Blitz"]
[Site "Chess.com"]
[Date "2018.07.03"]
[Round "2"]
[White "Yurovskykh_Oleksandr"]
[Black "Yaacovn"]
[Result "0-1"]
[WhiteElo "2404"]
[BlackElo "2639"]
[TimeControl "180+2"]
[EndTime "13:20:22 PDT"]
[Termination "Yaacovn won by resignation"]

1. c4 {[%clk 0:03:01.9]} 1... e5 {[%clk 0:03:01]} 2. g3 {[%clk 0:03:02.7]} 2...
Nc6 {[%clk 0:03:02.3]} 3. Nc3 {[%clk 0:03:01.9]} 3... Nf6 {[%clk 0:03:02.9]} 4.
Bg2 {[%clk 0:03:02.4]} 4... Bb4 {[%clk 0:03:00.7]} 5. Nd5 {[%clk 0:03:00.8]}
5... Bc5 {[%clk 0:03:00.7]} 6. e3 {[%clk 0:02:55.8]} 6... O-O {[%clk 0:03:01.1]}
7. Ne2 {[%clk 0:02:56.9]} 7... Nxd5 {[%clk 0:03:02.4]} 8. cxd5 {[%clk
0:02:58.1]} 8... Ne7 {[%clk 0:03:03.7]} 9. d4 {[%clk 0:02:43.2]} 9... exd4
{[%clk 0:02:53.3]} 10. Nxd4 {[%clk 0:02:45.1]} 10... c6 {[%clk 0:02:49.5]} 11.
dxc6 {[%clk 0:02:29.6]} 11... dxc6 {[%clk 0:02:50]} 12. O-O {[%clk 0:02:29.9]}
12... Bxd4 {[%clk 0:02:47.3]} 13. exd4 {[%clk 0:02:31]} 13... Be6 {[%clk
0:02:48.2]} 14. Be3 {[%clk 0:02:23.8]} 14... Qd7 {[%clk 0:02:47.1]} 15. Qc2
{[%clk 0:02:12.9]} 15... Bh3 {[%clk 0:02:33.1]} 16. Rab1 {[%clk 0:02:02.5]}
16... Bxg2 {[%clk 0:02:32.1]} 17. Kxg2 {[%clk 0:02:04.4]} 17... Nd5 {[%clk
0:02:33]} 18. Rfe1 {[%clk 0:01:59.6]} 18... Rfe8 {[%clk 0:02:34.3]} 19. Qc4
{[%clk 0:01:56.4]} 19... h5 {[%clk 0:02:33.2]} 20. h3 {[%clk 0:01:53.3]} 20...
Re4 {[%clk 0:02:33.4]} 21. b4 {[%clk 0:01:42.2]} 21... Qe6 {[%clk 0:02:30.2]}
22. Qd3 {[%clk 0:01:39.5]} 22... h4 {[%clk 0:02:27.7]} 23. g4 {[%clk 0:01:38]}
23... Nf4+ {[%clk 0:02:20.1]} 24. Bxf4 {[%clk 0:01:35.8]} 24... Rxe1 {[%clk
0:02:20.8]} 25. Rxe1 {[%clk 0:00:57.4]} 25... Qxe1 {[%clk 0:02:21]} 26. Be3
{[%clk 0:00:57.9]} 26... Qxb4 {[%clk 0:02:17.8]} 27. Qf5 {[%clk 0:00:54]} 27...
Qb5 {[%clk 0:02:15]} 28. Qd7 {[%clk 0:00:53.1]} 28... Qd5+ {[%clk 0:02:16]} 29.
Qxd5 {[%clk 0:00:54.6]} 29... cxd5 {[%clk 0:02:17.9]} 30. Kf3 {[%clk 0:00:56.5]}
30... Rc8 {[%clk 0:02:18.4]} 31. Kf4 {[%clk 0:00:58.4]} 31... f6 {[%clk
0:02:17.2]} 0-1

[Event "*** Titled Tuesday Blitz"]
[Site "Chess.com"]
[Date "2018.07.03"]
[Round "2"]
[White "PlotnikovPavel"]
[Black "arctic_t00"]
[Result "0-1"]
[WhiteElo "2482"]
[BlackElo "2314"]
[TimeControl "180+2"]
[EndTime "13:20:36 PDT"]
[Termination "arctic_t00 won by resignation"]

1. d4 {[%clk 0:03:01.9]} 1... Nf6 {[%clk 0:03:00.6]} 2. Nf3 {[%clk 0:03:03.2]}
2... g6 {[%clk 0:03:01.8]} 3. c4 {[%clk 0:03:04.6]} 3... Bg7 {[%clk 0:03:02.9]}
4. Nc3 {[%clk 0:03:06.1]} 4... d6 {[%clk 0:03:03.3]} 5. e4 {[%clk 0:03:07.5]}
5... O-O {[%clk 0:03:04.4]} 6. Be2 {[%clk 0:03:09]} 6... Nbd7 {[%clk 0:03:05.4]}
7. O-O {[%clk 0:03:10.4]} 7... e5 {[%clk 0:03:06.9]} 8. d5 {[%clk 0:03:11.4]}
8... Nc5 {[%clk 0:03:06.7]} 9. Qc2 {[%clk 0:03:11.2]} 9... a5 {[%clk 0:03:04]}
10. Nd2 {[%clk 0:03:10.6]} 10... Bh6 {[%clk 0:03:04.1]} 11. b3 {[%clk 0:03:09]}
11... Ne8 {[%clk 0:02:58.9]} 12. a3 {[%clk 0:03:04.7]} 12... f5 {[%clk
0:02:57.7]} 13. Bb2 {[%clk 0:02:55.3]} 13... Bxd2 {[%clk 0:02:56]} 14. Qxd2
{[%clk 0:02:56.2]} 14... Nxb3 {[%clk 0:02:57.1]} 15. Qh6 {[%clk 0:02:57.5]}
15... Nxa1 {[%clk 0:02:58.1]} 16. Bxa1 {[%clk 0:02:58]} 16... f4 {[%clk
0:02:55]} 17. c5 {[%clk 0:02:49.7]} 17... Qf6 {[%clk 0:02:47.4]} 18. cxd6 {[%clk
0:02:49.3]} 18... cxd6 {[%clk 0:02:47]} 19. f3 {[%clk 0:02:50.8]} 19... Bd7
{[%clk 0:02:37]} 20. a4 {[%clk 0:02:48.3]} 20... g5 {[%clk 0:02:26]} 21. Qxf6
{[%clk 0:02:47.4]} 21... Nxf6 {[%clk 0:02:27.9]} 22. Rb1 {[%clk 0:02:48]} 22...
Rfc8 {[%clk 0:02:08.6]} 23. Kf2 {[%clk 0:02:35.9]} 23... Rc7 {[%clk 0:02:02.8]}
24. Ke1 {[%clk 0:02:32.1]} 24... Rac8 {[%clk 0:01:59.7]} 25. Kd2 {[%clk
0:02:33.5]} 25... Kf7 {[%clk 0:01:58.5]} 26. Rb6 {[%clk 0:02:32.9]} 26... Ke7
{[%clk 0:01:58.1]} 27. Bb2 {[%clk 0:02:34]} 27... h5 {[%clk 0:01:58.2]} 28. h3
{[%clk 0:02:27.1]} 28... g4 {[%clk 0:01:54.9]} 29. hxg4 {[%clk 0:02:28.3]} 29...
hxg4 {[%clk 0:01:56.8]} 30. Bd1 {[%clk 0:02:28.8]} 30... g3 {[%clk 0:01:49.4]}
31. Nb5 {[%clk 0:02:09.9]} 31... Bxb5 {[%clk 0:01:46.4]} 32. Rxb5 {[%clk
0:02:11.3]} 32... Rh8 {[%clk 0:01:41.4]} 33. Rxa5 {[%clk 0:01:52.6]} 0-1